[Event "Titled Tuesday Blitz November 29 Late 2022"]
[White "Battlecruiser_Operational"]
[Black "Adel, Sara"]
[BlackFideId "10616764"]
[WhiteElo "2170"]
[BlackElo "1994"]
[Result "1-0"]
[Round "06"]
[TimeControl "180+1"]
[Date "2022.11.30"]
[WhiteClock "0:00:08"]
[BlackClock "0:00:10"]

1. d4 {[%clk 0:03:00]}  Nf6 {[%clk 0:02:59]} 2. c4 {[%clk 0:03:01]}  g6 {[%clk 0:02:59]} 3. Nc3 {[%clk 0:03:01]}  Bg7 {[%clk 0:02:59]} 4. e4 {[%clk 0:03:01]}  d6 {[%clk 0:03:00]} 5. Nf3 {[%clk 0:03:01]}  Nbd7 {[%clk 0:03:00]} 6. Be2 {[%clk 0:03:01]}  e5 {[%clk 0:03:00]} 7. O-O {[%clk 0:02:59]}  O-O {[%clk 0:03:00]} 8. Re1 {[%clk 0:02:59]}  exd4 {[%clk 0:02:59]} 9. Nxd4 {[%clk 0:02:59]}  Nc5 {[%clk 0:02:59]} 10. f3 {[%clk 0:02:52]}  c6 {[%clk 0:02:56]} 11. Kh1 {[%clk 0:02:45]}  h5 {[%clk 0:02:54]} 12. Bf1 {[%clk 0:02:44]}  h4 {[%clk 0:02:54]} 13. Bg5 {[%clk 0:02:40]}  Qb6 {[%clk 0:02:50]} 14. Nb3 {[%clk 0:02:38]}  Nh5 {[%clk 0:02:43]} 15. Bxh4 {[%clk 0:02:34]}  a5 {[%clk 0:02:28]} 16. Rb1 {[%clk 0:02:13]}  a4 {[%clk 0:02:27]} 17. Nxc5 {[%clk 0:02:12]}  Qxc5 {[%clk 0:02:20]} 18. Nxa4 {[%clk 0:02:10]}  Qb4 {[%clk 0:02:14]} 19. b3 {[%clk 0:02:07]}  b5 {[%clk 0:02:14]} 20. Nb6 {[%clk 0:01:57]}  Rxa2 {[%clk 0:02:13]} 21. Re2 {[%clk 0:01:38]}  Rxe2 {[%clk 0:02:09]} 22. Bxe2 {[%clk 0:01:38]}  Be6 {[%clk 0:02:08]} 23. Bf2 {[%clk 0:01:31]}  Rb8 {[%clk 0:02:05]} 24. cxb5 {[%clk 0:01:27]}  cxb5 {[%clk 0:01:47]} 25. Bf1 {[%clk 0:01:26]}  Be5 {[%clk 0:01:43]} 26. Nd5 {[%clk 0:01:23]}  Qa3 {[%clk 0:01:34]} 27. Ne7+ {[%clk 0:01:10]}  Kg7 {[%clk 0:01:29]} 28. Nc6 {[%clk 0:01:10]}  Rh8 {[%clk 0:01:20]} 29. Nxe5 {[%clk 0:01:06]}  dxe5 {[%clk 0:01:21]} 30. Bxb5 {[%clk 0:01:06]}  Qa2 {[%clk 0:01:17]} 31. Be1 {[%clk 0:00:43]}  Nf4 {[%clk 0:01:07]} 32. Bf1 {[%clk 0:00:42]}  Bc8 {[%clk 0:00:45]} 33. Bc3 {[%clk 0:00:28]}  f6 {[%clk 0:00:37]} 34. Ra1 {[%clk 0:00:24]}  Qf2 {[%clk 0:00:33]} 35. Qe1 {[%clk 0:00:17]}  Qb6 {[%clk 0:00:27]} 36. b4 {[%clk 0:00:14]}  Nh5 {[%clk 0:00:16]} 37. b5 {[%clk 0:00:13]}  Nf4 {[%clk 0:00:15]} 38. Rc1 {[%clk 0:00:11]}  Rh5 {[%clk 0:00:15]} 39. Bd2 {[%clk 0:00:09]}  g5 {[%clk 0:00:14]} 40. Be3 {[%clk 0:00:06]}  Qb7 {[%clk 0:00:13]} 41. g3 {[%clk 0:00:06]}  Ne6 {[%clk 0:00:13]} 42. Kg2 {[%clk 0:00:05]}  Kg6 {[%clk 0:00:13]} 43. b6 {[%clk 0:00:06]}  Qh7 {[%clk 0:00:12]} 44. Bg1 {[%clk 0:00:03]}  Bb7 {[%clk 0:00:11]} 45. Qb4 {[%clk 0:00:03]}  f5 {[%clk 0:00:11]} 46. exf5+ {[%clk 0:00:03]}  Kxf5 {[%clk 0:00:12]} 47. Bd3+ {[%clk 0:00:04]}  Kf6 {[%clk 0:00:10]} 48. Bxh7 {[%clk 0:00:04]}  Nd4 {[%clk 0:00:07]} 49. Qd6+ {[%clk 0:00:04]}  Kg7 {[%clk 0:00:06]} 50. Be4 {[%clk 0:00:04]}  Bxe4 {[%clk 0:00:06]} 51. fxe4 {[%clk 0:00:05]}  Rh6 {[%clk 0:00:06]} 52. Qxh6+ {[%clk 0:00:04]}  Kxh6 {[%clk 0:00:06]} 53. Bxd4 {[%clk 0:00:05]}  exd4 {[%clk 0:00:06]} 54. b7 {[%clk 0:00:06]}  d3 {[%clk 0:00:07]} 55. b8=Q {[%clk 0:00:07]}  d2 {[%clk 0:00:08]} 56. Rd1 {[%clk 0:00:07]}  Kh5 {[%clk 0:00:08]} 57. Rxd2 {[%clk 0:00:08]}  Kg4 {[%clk 0:00:09]} 58. Rd4 {[%clk 0:00:08]}  Kh5 {[%clk 0:00:09]} 59. Qd6 {[%clk 0:00:08]}  Kg4 {[%clk 0:00:09]} 60. e5+ {[%clk 0:00:09]}  Kf5 {[%clk 0:00:09]} 61. Qd7+ {[%clk 0:00:08]}  Kg6 {[%clk 0:00:09]} 62. Rd6+ {[%clk 0:00:08]}  Kh5 {[%clk 0:00:10]} 63. Qh3# {[%clk 0:00:08]} 1-0


[Site "https://www.chess.com"]

[Event "Titled Tuesday Blitz November 29 Late 2022"]
[White "Bjelobrk, Igor"]
[Black "Chernomordik, Pavel"]
[WhiteFideId "4300726"]
[BlackFideId "2804530"]
[WhiteElo "2335"]
[BlackElo "2192"]
[Result "0-1"]
[Round "06"]
[TimeControl "180+1"]
[Date "2022.11.30"]
[WhiteClock "0:00:59"]
[BlackClock "0:00:58"]

1. Nf3 {[%clk 0:02:51]}  g6 {[%clk 0:02:59]} 2. e4 {[%clk 0:02:49]}  Bg7 {[%clk 0:02:59]} 3. d4 {[%clk 0:02:48]}  d6 {[%clk 0:02:58]} 4. Bd3 {[%clk 0:02:46]}  c5 {[%clk 0:02:56]} 5. dxc5 {[%clk 0:02:40]}  dxc5 {[%clk 0:02:56]} 6. O-O {[%clk 0:02:39]}  Nc6 {[%clk 0:02:56]} 7. c3 {[%clk 0:02:38]}  Qc7 {[%clk 0:02:55]} 8. Na3 {[%clk 0:02:36]}  a6 {[%clk 0:02:54]} 9. Nc2 {[%clk 0:02:28]}  Nf6 {[%clk 0:02:46]} 10. a4 {[%clk 0:02:25]}  O-O {[%clk 0:02:45]} 11. h3 {[%clk 0:02:24]}  Rd8 {[%clk 0:02:42]} 12. Qe2 {[%clk 0:02:23]}  Nh5 {[%clk 0:02:42]} 13. Rd1 {[%clk 0:02:01]}  Nf4 {[%clk 0:02:37]} 14. Bxf4 {[%clk 0:02:00]}  Qxf4 {[%clk 0:02:36]} 15. Ne3 {[%clk 0:02:00]}  e6 {[%clk 0:02:21]} 16. Nc4 {[%clk 0:01:59]}  Bd7 {[%clk 0:02:16]} 17. a5 {[%clk 0:01:53]}  Be8 {[%clk 0:02:14]} 18. e5 {[%clk 0:01:52]}  Na7 {[%clk 0:01:55]} 19. Qe4 {[%clk 0:01:41]}  Qh6 {[%clk 0:01:40]} 20. Qe2 {[%clk 0:01:22]}  Bc6 {[%clk 0:01:36]} 21. Be4 {[%clk 0:01:22]}  Qf4 {[%clk 0:01:28]} 22. g3 {[%clk 0:01:16]}  Qxe4 {[%clk 0:01:25]} 23. Qxe4 {[%clk 0:01:13]}  Bxe4 {[%clk 0:01:24]} 24. Ng5 {[%clk 0:01:12]}  Bd5 {[%clk 0:01:13]} 25. Nb6 {[%clk 0:01:12]}  Rab8 {[%clk 0:01:13]} 26. Re1 {[%clk 0:01:06]}  h6 {[%clk 0:01:08]} 27. Ne4 {[%clk 0:01:05]}  Bxe4 {[%clk 0:01:08]} 28. Rxe4 {[%clk 0:01:06]}  Nc6 {[%clk 0:01:08]} 29. f4 {[%clk 0:01:06]}  Rd3 {[%clk 0:01:05]} 30. Kf2 {[%clk 0:01:03]}  Rbd8 {[%clk 0:01:05]} 31. Nc4 {[%clk 0:01:01]}  Bf8 {[%clk 0:01:03]} 32. Ra3 {[%clk 0:01:00]}  Na7 {[%clk 0:01:00]} 33. Rb3 {[%clk 0:01:00]}  Nb5 {[%clk 0:00:59]} 34. Ke2 {[%clk 0:00:59]}  Rxg3 {[%clk 0:00:58]} 0-1


[Site "https://www.chess.com"]

[Event "Titled Tuesday Blitz November 29 Late 2022"]
[White "Bobkov, Vadim"]
[Black "Indjic, Aleksandar"]
[WhiteFideId "34110876"]
[BlackFideId "911925"]
[WhiteElo "2172"]
[BlackElo "2592"]
[Result "1/2-1/2"]
[Round "06"]
[TimeControl "180+1"]
[Date "2022.11.30"]
[WhiteClock "0:00:07"]
[BlackClock "0:00:15"]

1. d4 {[%clk 0:03:00]}  Nf6 {[%clk 0:02:58]} 2. c4 {[%clk 0:03:01]}  e6 {[%clk 0:02:58]} 3. Nc3 {[%clk 0:03:02]}  c5 {[%clk 0:02:58]} 4. d5 {[%clk 0:03:02]}  exd5 {[%clk 0:02:59]} 5. cxd5 {[%clk 0:03:03]}  d6 {[%clk 0:02:59]} 6. Nf3 {[%clk 0:03:03]}  g6 {[%clk 0:02:59]} 7. Bf4 {[%clk 0:03:04]}  Bg7 {[%clk 0:02:59]} 8. Qa4+ {[%clk 0:03:05]}  Bd7 {[%clk 0:02:59]} 9. Qb3 {[%clk 0:03:06]}  O-O {[%clk 0:02:59]} 10. Bxd6 {[%clk 0:02:57]}  Ba4 {[%clk 0:02:56]} 11. Qxa4 {[%clk 0:02:51]}  Qxd6 {[%clk 0:02:56]} 12. Rd1 {[%clk 0:02:51]}  Nbd7 {[%clk 0:02:56]} 13. e3 {[%clk 0:02:49]}  a6 {[%clk 0:02:55]} 14. Be2 {[%clk 0:02:41]}  b5 {[%clk 0:02:55]} 15. Qb3 {[%clk 0:02:41]}  c4 {[%clk 0:02:55]} 16. Qc2 {[%clk 0:02:41]}  Rfe8 {[%clk 0:02:53]} 17. O-O {[%clk 0:02:40]}  Nb6 {[%clk 0:02:49]} 18. Nd4 {[%clk 0:02:26]}  Nfxd5 {[%clk 0:02:43]} 19. Bf3 {[%clk 0:02:21]}  Nxc3 {[%clk 0:02:37]} 20. bxc3 {[%clk 0:02:21]}  Qa3 {[%clk 0:02:06]} 21. Bxa8 {[%clk 0:02:10]}  Rxa8 {[%clk 0:02:07]} 22. Rd2 {[%clk 0:02:10]}  Na4 {[%clk 0:02:05]} 23. Rc1 {[%clk 0:02:11]}  Nc5 {[%clk 0:02:04]} 24. h3 {[%clk 0:01:40]}  Rc8 {[%clk 0:02:02]} 25. Rcd1 {[%clk 0:01:31]}  h5 {[%clk 0:01:57]} 26. Qb2 {[%clk 0:01:25]}  Qa5 {[%clk 0:01:39]} 27. Ne2 {[%clk 0:01:18]}  Nd3 {[%clk 0:01:33]} 28. Rxd3 {[%clk 0:01:11]}  cxd3 {[%clk 0:01:34]} 29. Rxd3 {[%clk 0:01:12]}  b4 {[%clk 0:01:25]} 30. cxb4 {[%clk 0:01:07]}  Bxb2 {[%clk 0:01:05]} 31. bxa5 {[%clk 0:01:07]}  Rc2 {[%clk 0:01:05]} 32. Nd4 {[%clk 0:00:33]}  Bxd4 {[%clk 0:01:04]} 33. Rxd4 {[%clk 0:00:34]}  Rxa2 {[%clk 0:01:04]} 34. Rd5 {[%clk 0:00:34]}  Kg7 {[%clk 0:01:02]} 35. g3 {[%clk 0:00:34]}  Kg8 {[%clk 0:01:02]} 36. Kg2 {[%clk 0:00:34]}  Kg7 {[%clk 0:01:02]} 37. Kf3 {[%clk 0:00:35]}  Kg8 {[%clk 0:01:03]} 38. Rc5 {[%clk 0:00:33]}  Kg7 {[%clk 0:01:03]} 39. g4 {[%clk 0:00:32]}  hxg4+ {[%clk 0:01:01]} 40. hxg4 {[%clk 0:00:33]}  Kg8 {[%clk 0:01:01]} 41. Kg3 {[%clk 0:00:33]}  Kg7 {[%clk 0:01:01]} 42. f3 {[%clk 0:00:31]}  Ra3 {[%clk 0:00:57]} 43. Kf4 {[%clk 0:00:31]}  Ra4+ {[%clk 0:00:57]} 44. Ke5 {[%clk 0:00:29]}  Ra3 {[%clk 0:00:57]} 45. Kf4 {[%clk 0:00:29]}  Ra4+ {[%clk 0:00:57]} 46. e4 {[%clk 0:00:29]}  Ra3 {[%clk 0:00:58]} 47. g5 {[%clk 0:00:29]}  Kf8 {[%clk 0:00:58]} 48. Rc8+ {[%clk 0:00:24]}  Ke7 {[%clk 0:00:58]} 49. Rc7+ {[%clk 0:00:24]}  Ke8 {[%clk 0:00:58]} 50. Rc5 {[%clk 0:00:24]}  Ke7 {[%clk 0:00:57]} 51. Kg4 {[%clk 0:00:24]}  Kd6 {[%clk 0:00:55]} 52. Rd5+ {[%clk 0:00:24]}  Ke7 {[%clk 0:00:56]} 53. f4 {[%clk 0:00:24]}  Re3 {[%clk 0:00:55]} 54. Re5+ {[%clk 0:00:19]}  Kf8 {[%clk 0:00:50]} 55. f5 {[%clk 0:00:18]}  gxf5+ {[%clk 0:00:45]} 56. Kxf5 {[%clk 0:00:19]}  Rf3+ {[%clk 0:00:45]} 57. Kg4 {[%clk 0:00:19]}  Ra3 {[%clk 0:00:45]} 58. Rc5 {[%clk 0:00:19]}  Kg7 {[%clk 0:00:35]} 59. Kf5 {[%clk 0:00:18]}  Ra2 {[%clk 0:00:32]} 60. Ke5 {[%clk 0:00:18]}  Kg6 {[%clk 0:00:31]} 61. Rc6+ {[%clk 0:00:18]}  Kxg5 {[%clk 0:00:29]} 62. Rxa6 {[%clk 0:00:19]}  f6+ {[%clk 0:00:29]} 63. Kd5 {[%clk 0:00:18]}  Rd2+ {[%clk 0:00:29]} 64. Kc5 {[%clk 0:00:15]}  Rc2+ {[%clk 0:00:28]} 65. Kb4 {[%clk 0:00:14]}  Re2 {[%clk 0:00:26]} 66. Re6 {[%clk 0:00:14]}  Rb2+ {[%clk 0:00:23]} 67. Kc5 {[%clk 0:00:14]}  f5 {[%clk 0:00:21]} 68. exf5 {[%clk 0:00:08]}  Kxf5 {[%clk 0:00:22]} 69. Re3 {[%clk 0:00:08]}  Ra2 {[%clk 0:00:19]} 70. Kb6 {[%clk 0:00:08]}  Kf4 {[%clk 0:00:19]} 71. Re1 {[%clk 0:00:06]}  Rb2+ {[%clk 0:00:18]} 72. Ka7 {[%clk 0:00:07]}  Kf5 {[%clk 0:00:18]} 73. a6 {[%clk 0:00:07]}  Kf6 {[%clk 0:00:18]} 74. Ka8 {[%clk 0:00:04]}  Kf7 {[%clk 0:00:18]} 75. Rc1 {[%clk 0:00:04]}  Ke7 {[%clk 0:00:18]} 76. Rc7+ {[%clk 0:00:02]}  Kd6 {[%clk 0:00:17]} 77. Rb7 {[%clk 0:00:03]}  Ra2 {[%clk 0:00:17]} 78. a7 {[%clk 0:00:01]}  Rh2 {[%clk 0:00:17]} 79. Rb8 {[%clk 0:00:01]}  Kc7 {[%clk 0:00:17]} 80. Rf8 {[%clk 0:00:02]}  Rb2 {[%clk 0:00:16]} 81. Rf7+ {[%clk 0:00:02]}  Kc8 {[%clk 0:00:16]} 82. Rf8+ {[%clk 0:00:03]}  Kc7 {[%clk 0:00:16]} 83. Rf7+ {[%clk 0:00:03]}  Kc8 {[%clk 0:00:16]} 84. Rf6 {[%clk 0:00:03]}  Rb1 {[%clk 0:00:16]} 85. Rc6+ {[%clk 0:00:04]}  Kd7 {[%clk 0:00:16]} 86. Rc5 {[%clk 0:00:04]}  Kd8 {[%clk 0:00:17]} 87. Rc4 {[%clk 0:00:04]}  Kd7 {[%clk 0:00:17]} 88. Rc3 {[%clk 0:00:05]}  Kd8 {[%clk 0:00:18]} 89. Rd3+ {[%clk 0:00:05]}  Kc7 {[%clk 0:00:18]} 90. Rh3 {[%clk 0:00:06]}  Kc8 {[%clk 0:00:18]} 91. Rh7 {[%clk 0:00:06]}  Rb2 {[%clk 0:00:17]} 92. Rh8+ {[%clk 0:00:06]}  Kc7 {[%clk 0:00:17]} 93. Rb8 {[%clk 0:00:07]}  Rf2 {[%clk 0:00:16]} 94. Rb7+ {[%clk 0:00:07]}  Kc8 {[%clk 0:00:15]} 95. Rc7+ {[%clk 0:00:07]}  Kxc7 {[%clk 0:00:15]} 1/2-1/2


[Site "https://www.chess.com"]

[Event "Titled Tuesday Blitz November 29 Late 2022"]
[White "Bortnyk, Olexandr"]
[Black "Bazeev, German"]
[WhiteFideId "14120828"]
[BlackFideId "24119350"]
[WhiteElo "2723"]
[BlackElo "2493"]
[Result "1-0"]
[Round "06"]
[TimeControl "180+1"]
[Date "2022.11.30"]
[WhiteClock "0:00:08"]
[BlackClock "0:00:07"]

1. e4 {[%clk 0:03:00]}  c6 {[%clk 0:02:57]} 2. d4 {[%clk 0:02:59]}  d5 {[%clk 0:02:57]} 3. Nc3 {[%clk 0:03:00]}  dxe4 {[%clk 0:02:57]} 4. Nxe4 {[%clk 0:03:00]}  Nf6 {[%clk 0:02:58]} 5. Nxf6+ {[%clk 0:03:01]}  exf6 {[%clk 0:02:58]} 6. c3 {[%clk 0:03:01]}  Bd6 {[%clk 0:02:58]} 7. Bd3 {[%clk 0:03:01]}  Na6 {[%clk 0:02:58]} 8. Qe2+ {[%clk 0:02:57]}  Kf8 {[%clk 0:02:58]} 9. Nf3 {[%clk 0:02:52]}  Nc7 {[%clk 0:02:45]} 10. O-O {[%clk 0:02:46]}  Bg4 {[%clk 0:02:42]} 11. h3 {[%clk 0:02:42]}  Bh5 {[%clk 0:02:42]} 12. Re1 {[%clk 0:02:40]}  Qd7 {[%clk 0:02:42]} 13. Be4 {[%clk 0:02:34]}  Re8 {[%clk 0:02:37]} 14. Qf1 {[%clk 0:01:57]}  Bg6 {[%clk 0:02:19]} 15. Bxg6 {[%clk 0:01:48]}  Rxe1 {[%clk 0:02:12]} 16. Qxe1 {[%clk 0:01:49]}  hxg6 {[%clk 0:02:13]} 17. Qe4 {[%clk 0:01:44]}  Qf5 {[%clk 0:01:57]} 18. Qxf5 {[%clk 0:01:40]}  gxf5 {[%clk 0:01:58]} 19. Bd2 {[%clk 0:01:39]}  g5 {[%clk 0:01:48]} 20. Ne1 {[%clk 0:01:29]}  Ne6 {[%clk 0:01:32]} 21. Nd3 {[%clk 0:01:25]}  Kg7 {[%clk 0:01:31]} 22. Re1 {[%clk 0:01:22]}  Rd8 {[%clk 0:01:30]} 23. Re2 {[%clk 0:01:13]}  Kg6 {[%clk 0:01:27]} 24. Kf1 {[%clk 0:01:11]}  f4 {[%clk 0:01:25]} 25. f3 {[%clk 0:01:10]}  b5 {[%clk 0:01:19]} 26. Be1 {[%clk 0:01:07]}  a5 {[%clk 0:01:13]} 27. Bf2 {[%clk 0:01:06]}  a4 {[%clk 0:01:13]} 28. Rc2 {[%clk 0:01:04]}  Nc7 {[%clk 0:01:00]} 29. c4 {[%clk 0:01:02]}  Bf8 {[%clk 0:00:48]} 30. cxb5 {[%clk 0:00:59]}  Nxb5 {[%clk 0:00:47]} 31. Rc4 {[%clk 0:00:59]}  a3 {[%clk 0:00:47]} 32. bxa3 {[%clk 0:00:31]}  Bxa3 {[%clk 0:00:41]} 33. Ke2 {[%clk 0:00:32]}  Ra8 {[%clk 0:00:28]} 34. Rxc6 {[%clk 0:00:30]}  Bd6 {[%clk 0:00:26]} 35. Rc2 {[%clk 0:00:19]}  Rxa2 {[%clk 0:00:18]} 36. Rxa2 {[%clk 0:00:20]}  Nc3+ {[%clk 0:00:18]} 37. Kd2 {[%clk 0:00:19]}  Nxa2 {[%clk 0:00:19]} 38. Kc2 {[%clk 0:00:17]}  Nb4+ {[%clk 0:00:14]} 39. Nxb4 {[%clk 0:00:17]}  Bxb4 {[%clk 0:00:15]} 40. Kb3 {[%clk 0:00:17]}  Bd2 {[%clk 0:00:15]} 41. Kc4 {[%clk 0:00:18]}  Kf5 {[%clk 0:00:12]} 42. d5 {[%clk 0:00:08]}  Be3 {[%clk 0:00:12]} 43. Be1 {[%clk 0:00:08]}  Bb6 {[%clk 0:00:07]} 44. Kb5 {[%clk 0:00:08]} 1-0


[Site "https://www.chess.com"]

[Event "Titled Tuesday Blitz November 29 Late 2022"]
[White "Boyer, Mahel"]
[Black "Milosevic, Milos"]
[WhiteFideId "45102422"]
[BlackFideId "964875"]
[WhiteElo "2454"]
[BlackElo "2321"]
[Result "1-0"]
[Round "06"]
[TimeControl "180+1"]
[Date "2022.11.30"]
[WhiteClock "0:01:37"]
[BlackClock "0:01:23"]

1. e4 {[%clk 0:03:00]}  d6 {[%clk 0:02:58]} 2. d4 {[%clk 0:03:00]}  Nf6 {[%clk 0:02:58]} 3. f3 {[%clk 0:03:01]}  e5 {[%clk 0:02:58]} 4. dxe5 {[%clk 0:03:01]}  dxe5 {[%clk 0:02:58]} 5. Qxd8+ {[%clk 0:03:02]}  Kxd8 {[%clk 0:02:59]} 6. Bc4 {[%clk 0:03:03]}  Ke8 {[%clk 0:02:57]} 7. Be3 {[%clk 0:03:03]}  c6 {[%clk 0:02:57]} 8. Nd2 {[%clk 0:03:03]}  b5 {[%clk 0:02:58]} 9. Bd3 {[%clk 0:03:03]}  Be6 {[%clk 0:02:57]} 10. a4 {[%clk 0:03:03]}  b4 {[%clk 0:02:50]} 11. a5 {[%clk 0:03:03]}  Nbd7 {[%clk 0:02:49]} 12. Nb3 {[%clk 0:03:02]}  c5 {[%clk 0:02:46]} 13. Nd2 {[%clk 0:03:01]}  h5 {[%clk 0:02:36]} 14. Nh3 {[%clk 0:02:59]}  Rc8 {[%clk 0:02:25]} 15. Ba6 {[%clk 0:02:54]}  Rc6 {[%clk 0:02:10]} 16. Bb5 {[%clk 0:02:25]}  Rd6 {[%clk 0:02:06]} 17. Ng5 {[%clk 0:02:24]}  a6 {[%clk 0:02:05]} 18. Nxe6 {[%clk 0:02:21]}  Rxe6 {[%clk 0:01:49]} 19. Bc4 {[%clk 0:02:11]}  Rc6 {[%clk 0:01:49]} 20. Ke2 {[%clk 0:02:00]}  Bd6 {[%clk 0:01:49]} 21. Bb3 {[%clk 0:01:59]}  Ke7 {[%clk 0:01:49]} 22. Nc4 {[%clk 0:01:58]}  Bc7 {[%clk 0:01:41]} 23. Rhd1 {[%clk 0:01:52]}  Ne8 {[%clk 0:01:40]} 24. Ba4 {[%clk 0:01:51]}  Rd6 {[%clk 0:01:35]} 25. Nxd6 {[%clk 0:01:36]}  Nxd6 {[%clk 0:01:26]} 26. Bxd7 {[%clk 0:01:35]}  Kxd7 {[%clk 0:01:27]} 27. Bxc5 {[%clk 0:01:34]}  Kc6 {[%clk 0:01:27]} 28. Bxb4 {[%clk 0:01:34]}  Rb8 {[%clk 0:01:26]} 29. Bxd6 {[%clk 0:01:33]}  Bxd6 {[%clk 0:01:26]} 30. b3 {[%clk 0:01:34]}  Bc5 {[%clk 0:01:25]} 31. Rd5 {[%clk 0:01:34]}  Bd4 {[%clk 0:01:25]} 32. Ra4 {[%clk 0:01:34]}  f6 {[%clk 0:01:25]} 33. Rc4+ {[%clk 0:01:35]}  Kb7 {[%clk 0:01:24]} 34. c3 {[%clk 0:01:36]}  Bg1 {[%clk 0:01:23]} 35. Rd7+ {[%clk 0:01:36]}  Ka8 {[%clk 0:01:23]} 36. b4 {[%clk 0:01:37]} 1-0


[Site "https://www.chess.com"]

[Event "Titled Tuesday Blitz November 29 Late 2022"]
[White "Cardoso Cardoso, Jose Gabriel"]
[Black "Estrada Nieto, Julian"]
[WhiteFideId "4430492"]
[BlackFideId "5101018"]
[WhiteElo "2484"]
[BlackElo "2221"]
[Result "1-0"]
[Round "06"]
[TimeControl "180+1"]
[Date "2022.11.30"]
[WhiteClock "0:00:10"]
[BlackClock "0:00:20"]

1. d4 {[%clk 0:03:00]}  d5 {[%clk 0:02:59]} 2. Nc3 {[%clk 0:03:00]}  Nf6 {[%clk 0:02:58]} 3. Bf4 {[%clk 0:03:01]}  c6 {[%clk 0:02:57]} 4. e3 {[%clk 0:03:01]}  Bf5 {[%clk 0:02:56]} 5. f3 {[%clk 0:03:02]}  e6 {[%clk 0:02:50]} 6. g4 {[%clk 0:03:02]}  Bg6 {[%clk 0:02:50]} 7. h4 {[%clk 0:03:03]}  h5 {[%clk 0:02:51]} 8. g5 {[%clk 0:03:03]}  Nfd7 {[%clk 0:02:48]} 9. Bd3 {[%clk 0:03:04]}  Bxd3 {[%clk 0:02:41]} 10. Qxd3 {[%clk 0:03:05]}  g6 {[%clk 0:02:42]} 11. Nge2 {[%clk 0:03:05]}  Bg7 {[%clk 0:02:41]} 12. e4 {[%clk 0:03:01]}  O-O {[%clk 0:02:41]} 13. O-O-O {[%clk 0:02:59]}  Nb6 {[%clk 0:02:32]} 14. Kb1 {[%clk 0:02:41]}  N8d7 {[%clk 0:02:29]} 15. Bc1 {[%clk 0:02:25]}  a5 {[%clk 0:02:24]} 16. f4 {[%clk 0:02:20]}  a4 {[%clk 0:02:17]} 17. e5 {[%clk 0:02:16]}  Nc4 {[%clk 0:02:12]} 18. a3 {[%clk 0:02:08]}  b5 {[%clk 0:02:11]} 19. Na2 {[%clk 0:02:08]}  Re8 {[%clk 0:01:56]} 20. c3 {[%clk 0:02:04]}  c5 {[%clk 0:01:47]} 21. Ng3 {[%clk 0:01:52]}  Bf8 {[%clk 0:01:44]} 22. Be3 {[%clk 0:01:35]}  cxd4 {[%clk 0:01:38]} 23. Bxd4 {[%clk 0:01:34]}  Nc5 {[%clk 0:01:36]} 24. Bxc5 {[%clk 0:01:28]}  Bxc5 {[%clk 0:01:36]} 25. Qf3 {[%clk 0:01:24]}  Qc7 {[%clk 0:01:29]} 26. Rd3 {[%clk 0:01:22]}  Bxa3 {[%clk 0:01:22]} 27. bxa3 {[%clk 0:01:19]}  Nxa3+ {[%clk 0:01:23]} 28. Ka1 {[%clk 0:01:09]}  Qc4 {[%clk 0:01:14]} 29. Qe2 {[%clk 0:00:45]}  Rac8 {[%clk 0:01:09]} 30. Rd4 {[%clk 0:00:25]}  Nc2+ {[%clk 0:01:03]} 31. Qxc2 {[%clk 0:00:22]}  Qxd4 {[%clk 0:01:03]} 32. Qxg6+ {[%clk 0:00:15]}  fxg6 {[%clk 0:01:01]} 33. cxd4 {[%clk 0:00:16]}  Rc2 {[%clk 0:00:53]} 34. Rb1 {[%clk 0:00:11]}  Rg2 {[%clk 0:00:51]} 35. Nf1 {[%clk 0:00:09]}  Rf8 {[%clk 0:00:48]} 36. f5 {[%clk 0:00:06]}  Rxf5 {[%clk 0:00:48]} 37. Ne3 {[%clk 0:00:06]}  Rxa2+ {[%clk 0:00:43]} 38. Kxa2 {[%clk 0:00:06]}  Rf4 {[%clk 0:00:43]} 39. Rxb5 {[%clk 0:00:05]}  Rxd4 {[%clk 0:00:40]} 40. Rb6 {[%clk 0:00:04]}  Kf7 {[%clk 0:00:39]} 41. Nc2 {[%clk 0:00:04]}  Rxh4 {[%clk 0:00:38]} 42. Nb4 {[%clk 0:00:03]}  Re4 {[%clk 0:00:37]} 43. Rb7+ {[%clk 0:00:04]}  Kg8 {[%clk 0:00:35]} 44. Nc6 {[%clk 0:00:05]}  h4 {[%clk 0:00:34]} 45. Ne7+ {[%clk 0:00:05]}  Kf7 {[%clk 0:00:34]} 46. Nf5+ {[%clk 0:00:05]}  Ke8 {[%clk 0:00:32]} 47. Nd6+ {[%clk 0:00:06]}  Kd8 {[%clk 0:00:30]} 48. Nxe4 {[%clk 0:00:06]}  dxe4 {[%clk 0:00:30]} 49. Rh7 {[%clk 0:00:07]}  e3 {[%clk 0:00:26]} 50. Rxh4 {[%clk 0:00:07]}  Kd7 {[%clk 0:00:26]} 51. Re4 {[%clk 0:00:06]}  Kc6 {[%clk 0:00:26]} 52. Rxe3 {[%clk 0:00:06]}  Kd5 {[%clk 0:00:27]} 53. Ka3 {[%clk 0:00:07]}  Kd4 {[%clk 0:00:27]} 54. Re1 {[%clk 0:00:07]}  Kd3 {[%clk 0:00:26]} 55. Kxa4 {[%clk 0:00:08]}  Kd2 {[%clk 0:00:27]} 56. Rf1 {[%clk 0:00:08]}  Ke3 {[%clk 0:00:26]} 57. Rf6 {[%clk 0:00:09]}  Ke4 {[%clk 0:00:20]} 58. Rxg6 {[%clk 0:00:08]}  Kf5 {[%clk 0:00:21]} 59. Rf6+ {[%clk 0:00:07]}  Kxe5 {[%clk 0:00:21]} 60. Rf8 {[%clk 0:00:07]}  Kd6 {[%clk 0:00:19]} 61. g6 {[%clk 0:00:08]}  Ke7 {[%clk 0:00:20]} 62. g7 {[%clk 0:00:09]}  e5 {[%clk 0:00:20]} 63. g8=Q {[%clk 0:00:10]} 1-0


[Site "https://www.chess.com"]